[Event "*** Titled Tuesday Blitz"]
[Site "Chess.com"]
[Date "2018.08.07"]
[Round "6"]
[White "Indianlad"]
[Black "LastHeroJr"]
[Result "1-0"]
[WhiteElo "2738"]
[BlackElo "2509"]
[TimeControl "180+2"]
[EndTime "14:15:55 PDT"]
[Termination "Indianlad won by resignation"]

1. Nf3 {[%clk 0:03:01.9]} 1... Nf6 {[%clk 0:02:58.6]} 2. c4 {[%clk 0:03:03.3]}
2... e6 {[%clk 0:02:59.3]} 3. b3 {[%clk 0:03:03.3]} 3... d5 {[%clk 0:02:58.4]}
4. Bb2 {[%clk 0:03:04.6]} 4... Be7 {[%clk 0:02:58.8]} 5. e3 {[%clk 0:03:05.9]}
5... O-O {[%clk 0:02:59.2]} 6. Nc3 {[%clk 0:03:07.3]} 6... c5 {[%clk 0:02:58.8]}
7. cxd5 {[%clk 0:03:04.4]} 7... Nxd5 {[%clk 0:02:53.8]} 8. a3 {[%clk 0:02:56.4]}
8... Bf6 {[%clk 0:02:53.6]} 9. Qc2 {[%clk 0:02:57]} 9... Nc6 {[%clk 0:02:46.9]}
10. h4 {[%clk 0:02:57.2]} 10... Nxc3 {[%clk 0:02:38.9]} 11. dxc3 {[%clk
0:02:56.9]} 11... h5 {[%clk 0:02:16.2]} 12. Ng5 {[%clk 0:02:41.4]} 12... g6
{[%clk 0:02:08.7]} 13. Ne4 {[%clk 0:02:33.9]} 13... Be7 {[%clk 0:02:06.3]} 14.
Bd3 {[%clk 0:02:22.4]} 14... e5 {[%clk 0:02:02.3]} 15. O-O-O {[%clk 0:02:22.8]}
15... Qa5 {[%clk 0:01:48.9]} 16. Ng5 {[%clk 0:01:43.2]} 16... c4 {[%clk
0:00:37.7]} 17. Bxc4 {[%clk 0:01:41.9]} 17... Bf5 {[%clk 0:00:37.6]} 18. e4
{[%clk 0:01:42.5]} 18... Bc8 {[%clk 0:00:31.3]} 19. b4 {[%clk 0:01:42.7]} 19...
Qc7 {[%clk 0:00:31.7]} 20. Bd5 {[%clk 0:01:38.7]} 20... a5 {[%clk 0:00:32.6]}
21. Kb1 {[%clk 0:01:35.3]} 21... Qb6 {[%clk 0:00:27.6]} 22. Qb3 {[%clk
0:01:34.7]} 22... Nd8 {[%clk 0:00:28.5]} 23. Rhf1 {[%clk 0:01:31.9]} 23... Ne6
{[%clk 0:00:20.6]} 24. Nxe6 {[%clk 0:01:31.7]} 24... Bxe6 {[%clk 0:00:22.5]} 25.
Bxe6 {[%clk 0:01:32.5]} 25... fxe6 {[%clk 0:00:22.3]} 26. f3 {[%clk 0:01:33.6]}
26... Bxh4 {[%clk 0:00:22.4]} 27. Rd7 {[%clk 0:01:33.5]} 27... Rad8 {[%clk
0:00:21.6]} 28. Rfd1 {[%clk 0:01:34.1]} 28... Rxd7 {[%clk 0:00:22.3]} 29. Rxd7
{[%clk 0:01:36]} 29... Bf6 {[%clk 0:00:22.3]} 30. c4 {[%clk 0:01:35.6]} 30...
axb4 {[%clk 0:00:20.3]} 31. axb4 {[%clk 0:01:37.5]} 31... Bg5 {[%clk 0:00:21.6]}
32. c5 {[%clk 0:01:37.9]} 32... Qb5 {[%clk 0:00:22.1]} 33. Qxe6+ {[%clk
0:01:37.6]} 1-0

[Event "*** Titled Tuesday Blitz"]
[Site "Chess.com"]
[Date "2018.08.07"]
[Round "6"]
[White "NikolaGry"]
[Black "djano"]
[Result "1-0"]
[WhiteElo "2518"]
[BlackElo "2369"]
[TimeControl "180+2"]
[EndTime "14:16:15 PDT"]
[Termination "NikolaGry won by resignation"]

1. e4 {[%clk 0:03:01.9]} 1... c5 {[%clk 0:03:00.4]} 2. Nf3 {[%clk 0:03:02.7]}
2... d6 {[%clk 0:03:01.7]} 3. Bb5+ {[%clk 0:03:02.3]} 3... Nd7 {[%clk 0:03:02]}
4. O-O {[%clk 0:03:02.3]} 4... a6 {[%clk 0:03:02.9]} 5. Bxd7+ {[%clk 0:03:02.2]}
5... Bxd7 {[%clk 0:03:04.8]} 6. Re1 {[%clk 0:03:03.3]} 6... Nf6 {[%clk
0:03:03.1]} 7. c3 {[%clk 0:03:02.2]} 7... c4 {[%clk 0:03:01.7]} 8. b3 {[%clk
0:02:51.7]} 8... b5 {[%clk 0:03:01.6]} 9. bxc4 {[%clk 0:02:49.6]} 9... bxc4
{[%clk 0:03:03.5]} 10. Na3 {[%clk 0:02:50.4]} 10... Rc8 {[%clk 0:03:04.2]} 11.
e5 {[%clk 0:02:48.1]} 11... Nd5 {[%clk 0:02:50.9]} 12. exd6 {[%clk 0:02:46.6]}
12... e6 {[%clk 0:02:52.3]} 13. Ne5 {[%clk 0:02:47.2]} 13... Bxd6 {[%clk
0:02:48.3]} 14. Naxc4 {[%clk 0:02:42.1]} 14... Bb8 {[%clk 0:02:37.9]} 15. Ba3
{[%clk 0:02:40.1]} 15... Bb5 {[%clk 0:02:33.2]} 16. Qg4 {[%clk 0:01:59.5]} 16...
Qf6 {[%clk 0:01:16.1]} 17. Nd6+ {[%clk 0:01:47.6]} 17... Bxd6 {[%clk 0:01:16.6]}
18. Bxd6 {[%clk 0:01:48]} 18... h5 {[%clk 0:01:14]} 19. Qd4 {[%clk 0:01:22.9]}
19... Ne7 {[%clk 0:01:01.8]} 20. Qa7 {[%clk 0:01:04.3]} 20... Rd8 {[%clk
0:00:34.7]} 21. Bb4 {[%clk 0:00:45.2]} 21... Rxd2 {[%clk 0:00:33.5]} 22. c4
{[%clk 0:00:43.6]} 22... Nc8 {[%clk 0:00:21.1]} 23. Qe3 {[%clk 0:00:39.8]} 23...
Rb2 {[%clk 0:00:22]} 24. Bc3 {[%clk 0:00:39]} 24... Rd2 {[%clk 0:00:20.6]} 25.
Qxd2 {[%clk 0:00:37.8]} 1-0

[Event "*** Titled Tuesday Blitz"]
[Site "Chess.com"]
[Date "2018.08.07"]
[Round "6"]
[White "Divertissement"]
[Black "PaulfromSPb"]
[Result "0-1"]
[WhiteElo "2561"]
[BlackElo "2582"]
[TimeControl "180+2"]
[EndTime "14:16:35 PDT"]
[Termination "PaulfromSPb won by resignation"]

1. e4 {[%clk 0:03:01.9]} 1... c5 {[%clk 0:02:57.9]} 2. Nf3 {[%clk 0:03:02.4]}
2... d6 {[%clk 0:02:58]} 3. d4 {[%clk 0:03:03]} 3... cxd4 {[%clk 0:02:58.9]} 4.
Nxd4 {[%clk 0:03:04.4]} 4... Nf6 {[%clk 0:02:59.4]} 5. Nc3 {[%clk 0:03:05.3]}
5... a6 {[%clk 0:03:00.2]} 6. Be3 {[%clk 0:03:01.5]} 6... e5 {[%clk 0:03:00.8]}
7. Nf3 {[%clk 0:03:02.1]} 7... h6 {[%clk 0:02:56.2]} 8. Bc4 {[%clk 0:03:02]}
8... Be7 {[%clk 0:02:55.3]} 9. O-O {[%clk 0:02:55.4]} 9... O-O {[%clk 0:02:55]}
10. Bb3 {[%clk 0:02:56.7]} 10... Nc6 {[%clk 0:02:49.6]} 11. h3 {[%clk
0:02:42.1]} 11... Be6 {[%clk 0:02:44.9]} 12. Qd3 {[%clk 0:02:35.3]} 12... Na5
{[%clk 0:02:31.7]} 13. Bd5 {[%clk 0:02:28]} 13... Qc7 {[%clk 0:02:20.4]} 14.
Rfd1 {[%clk 0:02:05]} 14... Rac8 {[%clk 0:02:13.6]} 15. a4 {[%clk 0:01:47.1]}
15... Rfe8 {[%clk 0:01:57.8]} 16. Rd2 {[%clk 0:01:26.7]} 16... Nc4 {[%clk
0:01:46.4]} 17. Qxc4 {[%clk 0:00:37]} 17... Qxc4 {[%clk 0:01:46.8]} 18. Bxc4
{[%clk 0:00:38.4]} 18... Rxc4 {[%clk 0:01:48.3]} 19. Rd3 {[%clk 0:00:24.2]}
19... Nxe4 {[%clk 0:01:36]} 20. Nxe4 {[%clk 0:00:26.1]} 20... Rxe4 {[%clk
0:01:36.6]} 21. Nd2 {[%clk 0:00:28]} 21... Rb4 {[%clk 0:01:35]} 22. b3 {[%clk
0:00:25.5]} 22... Bf5 {[%clk 0:01:21.2]} 23. Rc3 {[%clk 0:00:24.9]} 23... d5
{[%clk 0:01:22.2]} 24. Rc7 {[%clk 0:00:16.1]} 24... d4 {[%clk 0:01:20.4]} 25. c3
{[%clk 0:00:17.4]} 25... dxe3 {[%clk 0:01:14.3]} 26. cxb4 {[%clk 0:00:18.6]}
26... exd2 {[%clk 0:01:15.1]} 27. b5 {[%clk 0:00:15.6]} 27... axb5 {[%clk
0:01:13.2]} 28. axb5 {[%clk 0:00:16.3]} 28... Bb4 {[%clk 0:01:07.3]} 29. Rc4
{[%clk 0:00:17.2]} 29... Rd8 {[%clk 0:01:03.6]} 30. Rd1 {[%clk 0:00:17.8]} 30...
Ba3 {[%clk 0:01:01.1]} 31. g4 {[%clk 0:00:15.8]} 31... Be6 {[%clk 0:00:59.5]}
32. Rc7 {[%clk 0:00:16.3]} 32... Bxb3 {[%clk 0:00:56.2]} 0-1

[Event "*** Titled Tuesday Blitz"]
[Site "Chess.com"]
[Date "2018.08.07"]
[Round "6"]
[White "Mimsychess"]
[Black "GameOverBro"]
[Result "1-0"]
[WhiteElo "2279"]
[BlackElo "2363"]
[TimeControl "180+2"]
[EndTime "14:16:53 PDT"]
[Termination "Mimsychess won by resignation"]

1. d4 {[%clk 0:02:59.4]} 1... d6 {[%clk 0:03:00]} 2. Nf3 {[%clk 0:02:52.1]} 2...
Nf6 {[%clk 0:03:00.5]} 3. Nc3 {[%clk 0:02:44.4]} 3... Bf5 {[%clk 0:03:00.5]} 4.
Bg5 {[%clk 0:02:43.5]} 4... Nbd7 {[%clk 0:02:59.8]} 5. Nd2 {[%clk 0:02:30.5]}
5... h6 {[%clk 0:02:57.6]} 6. Bh4 {[%clk 0:02:29.6]} 6... g5 {[%clk 0:02:57.2]}
7. Bg3 {[%clk 0:02:30.3]} 7... Nh5 {[%clk 0:02:56.4]} 8. e4 {[%clk 0:02:28]}
8... Nxg3 {[%clk 0:02:57.3]} 9. hxg3 {[%clk 0:02:29.9]} 9... Bg6 {[%clk
0:02:58.6]} 10. f4 {[%clk 0:02:09.6]} 10... e6 {[%clk 0:02:51.2]} 11. Qf3 {[%clk
0:02:06.4]} 11... Qf6 {[%clk 0:02:43.6]} 12. e5 {[%clk 0:01:58.1]} 12... Qf5
{[%clk 0:02:26.8]} 13. Bd3 {[%clk 0:01:54.5]} 13... g4 {[%clk 0:02:07.4]} 14.
Qxb7 {[%clk 0:01:44.8]} 14... Rb8 {[%clk 0:02:06.9]} 15. Qxc7 {[%clk 0:01:45.5]}
15... Qxd3 {[%clk 0:01:01.5]} 16. cxd3 {[%clk 0:01:44.7]} 16... Bxd3 {[%clk
0:01:03.4]} 17. Nde4 {[%clk 0:01:36.8]} 17... d5 {[%clk 0:00:52]} 18. Nf6+
{[%clk 0:01:19.8]} 18... Nxf6 {[%clk 0:00:51.5]} 19. exf6 {[%clk 0:01:21.7]}
19... Rd8 {[%clk 0:00:45.8]} 20. O-O-O {[%clk 0:01:08.8]} 20... Bf5 {[%clk
0:00:36.9]} 21. Qc6+ {[%clk 0:00:58.5]} 21... Rd7 {[%clk 0:00:36.4]} 22. Nxd5
{[%clk 0:00:54.9]} 22... Bd6 {[%clk 0:00:32.5]} 23. Rde1 {[%clk 0:00:29.4]}
23... Bb8 {[%clk 0:00:28.5]} 24. Ne3 {[%clk 0:00:20.4]} 24... Kd8 {[%clk
0:00:27.9]} 25. Kd2 {[%clk 0:00:17.8]} 25... Rxd4+ {[%clk 0:00:25.8]} 26. Ke2
{[%clk 0:00:16.2]} 26... Be4 {[%clk 0:00:27.1]} 27. Qc5 {[%clk 0:00:14.5]} 27...
Rd5 {[%clk 0:00:28.1]} 28. Nxd5 {[%clk 0:00:14.5]} 28... exd5 {[%clk 0:00:24.4]}
29. Qe7+ {[%clk 0:00:14.6]} 29... Kc8 {[%clk 0:00:25]} 30. Rc1+ {[%clk
0:00:16.5]} 1-0

[Event "*** Titled Tuesday Blitz"]
[Site "Chess.com"]
[Date "2018.08.07"]
[Round "6"]
[White "CookiesAndIceCream"]
[Black "Morshynska"]
[Result "1-0"]
[WhiteElo "2257"]
[BlackElo "2128"]
[TimeControl "180+2"]
[EndTime "14:17:02 PDT"]
[Termination "CookiesAndIceCream won on time"]

1. e4 {[%clk 0:03:01.9]} 1... e5 {[%clk 0:02:59.9]} 2. Nf3 {[%clk 0:03:03]} 2...
Nc6 {[%clk 0:03:00.2]} 3. Nc3 {[%clk 0:03:04.5]} 3... Nf6 {[%clk 0:03:00]} 4.
Bb5 {[%clk 0:03:06]} 4... Bb4 {[%clk 0:02:59.9]} 5. O-O {[%clk 0:03:07.3]} 5...
O-O {[%clk 0:02:57.2]} 6. d3 {[%clk 0:03:08.6]} 6... Bxc3 {[%clk 0:02:57.5]} 7.
bxc3 {[%clk 0:03:10.5]} 7... d6 {[%clk 0:02:58.2]} 8. Bg5 {[%clk 0:03:12]} 8...
Qe7 {[%clk 0:02:55.2]} 9. Re1 {[%clk 0:03:13.2]} 9... Nd8 {[%clk 0:02:55.1]} 10.
d4 {[%clk 0:03:14.7]} 10... Ne6 {[%clk 0:02:54.9]} 11. Bc1 {[%clk 0:03:16.3]}
11... c6 {[%clk 0:02:50.9]} 12. Bf1 {[%clk 0:03:17.4]} 12... Qc7 {[%clk
0:02:50.3]} 13. c4 {[%clk 0:02:54.5]} 13... Re8 {[%clk 0:02:04.8]} 14. Bb2
{[%clk 0:02:45.9]} 14... Nf4 {[%clk 0:01:42.2]} 15. c5 {[%clk 0:02:26.2]} 15...
dxc5 {[%clk 0:01:27.5]} 16. dxe5 {[%clk 0:02:18.5]} 16... Nd7 {[%clk 0:01:20]}
17. Qd6 {[%clk 0:01:52.5]} 17... Ne6 {[%clk 0:00:55.5]} 18. Rad1 {[%clk
0:01:32.7]} 18... Nb6 {[%clk 0:00:41.6]} 19. h4 {[%clk 0:00:58.4]} 19... h6
{[%clk 0:00:24]} 20. g3 {[%clk 0:00:50.4]} 20... Na4 {[%clk 0:00:16.6]} 21. Ba1
{[%clk 0:00:46.3]} 21... Qa5 {[%clk 0:00:16.1]} 22. Qd2 {[%clk 0:00:31]} 22...
Qc7 {[%clk 0:00:11.9]} 23. Qd6 {[%clk 0:00:30.8]} 23... Qa5 {[%clk 0:00:12]} 24.
Nd2 {[%clk 0:00:23.3]} 24... Qc7 {[%clk 0:00:03.7]} 25. Nc4 {[%clk 0:00:21.1]}
1-0

[Event "*** Titled Tuesday Blitz"]
[Site "Chess.com"]
[Date "2018.08.07"]
[Round "6"]
[White "NemtsevIgor"]
[Black "ShadyH9"]
[Result "1-0"]
[WhiteElo "2376"]
[BlackElo "2245"]
[TimeControl "180+2"]
[EndTime "14:17:04 PDT"]
[Termination "NemtsevIgor won by resignation"]

1. c3 {[%clk 0:03:01.9]} 1... g6 {[%clk 0:02:58.3]} 2. d3 {[%clk 0:03:03]} 2...
Bg7 {[%clk 0:02:59.2]} 3. Nd2 {[%clk 0:03:03.7]} 3... c5 {[%clk 0:02:56.8]} 4.
h3 {[%clk 0:03:04]} 4... Nc6 {[%clk 0:02:57.5]} 5. g4 {[%clk 0:03:05.1]} 5... d5
{[%clk 0:02:57.4]} 6. Bg2 {[%clk 0:03:05.4]} 6... e5 {[%clk 0:02:52.5]} 7. Nf1
{[%clk 0:03:04.8]} 7... Nge7 {[%clk 0:02:52.9]} 8. Ng3 {[%clk 0:03:05]} 8... Be6
{[%clk 0:02:49.3]} 9. Nf3 {[%clk 0:03:04.5]} 9... h6 {[%clk 0:02:44.5]} 10. Qa4
{[%clk 0:03:03.9]} 10... Qd7 {[%clk 0:02:44.8]} 11. Be3 {[%clk 0:03:01.1]} 11...
d4 {[%clk 0:02:41.1]} 12. Bd2 {[%clk 0:03:01.3]} 12... Nd5 {[%clk 0:02:20.6]}
13. Ne4 {[%clk 0:02:57.1]} 13... b6 {[%clk 0:02:11.4]} 14. c4 {[%clk 0:02:50.4]}
14... Nf4 {[%clk 0:02:02.8]} 15. Bxf4 {[%clk 0:02:51]} 15... exf4 {[%clk
0:02:04.7]} 16. Nfd2 {[%clk 0:02:43.3]} 16... Rc8 {[%clk 0:02:01]} 17. Nf3
{[%clk 0:02:10.3]} 17... O-O {[%clk 0:01:58.9]} 18. g5 {[%clk 0:02:10.5]} 18...
h5 {[%clk 0:01:36]} 19. a3 {[%clk 0:02:05]} 19... Bf5 {[%clk 0:01:05.4]} 20. Nh4
{[%clk 0:01:59.1]} 20... Rfe8 {[%clk 0:00:50.7]} 21. O-O-O {[%clk 0:01:51.7]}
21... Be6 {[%clk 0:00:37.8]} 22. Nf6+ {[%clk 0:01:48.9]} 22... Bxf6 {[%clk
0:00:38.1]} 23. gxf6 {[%clk 0:01:50.8]} 23... Ne5 {[%clk 0:00:35.1]} 24. Qxd7
{[%clk 0:01:50.7]} 24... Nxd7 {[%clk 0:00:35.4]} 25. Be4 {[%clk 0:01:51]} 25...
Nxf6 {[%clk 0:00:34.6]} 26. f3 {[%clk 0:01:48.3]} 26... Nxe4 {[%clk 0:00:13.3]}
27. dxe4 {[%clk 0:01:47.6]} 27... Kh7 {[%clk 0:00:14]} 28. b3 {[%clk 0:01:47.6]}
28... b5 {[%clk 0:00:13.8]} 29. cxb5 {[%clk 0:01:35.2]} 29... Bxb3 {[%clk
0:00:14.3]} 30. Rd2 {[%clk 0:01:37.1]} 30... Ba4 {[%clk 0:00:14.7]} 31. Ng2
{[%clk 0:01:36.7]} 31... Bxb5 {[%clk 0:00:12.6]} 32. Nxf4 {[%clk 0:01:37.6]}
32... Bc6 {[%clk 0:00:07.6]} 33. Rc2 {[%clk 0:01:35.5]} 33... Ba8 {[%clk
0:00:08.3]} 34. Rc4 {[%clk 0:01:35.2]} 34... Red8 {[%clk 0:00:06.1]} 35. Kd2
{[%clk 0:01:36.2]} 35... Rc7 {[%clk 0:00:05.8]} 36. Rhc1 {[%clk 0:01:36.1]}
36... Rdc8 {[%clk 0:00:06.2]} 37. Nd3 {[%clk 0:01:34.9]} 37... Bb7 {[%clk
0:00:06]} 38. Nxc5 {[%clk 0:01:34.8]} 38... Bc6 {[%clk 0:00:05.7]} 39. Nd3
{[%clk 0:01:34]} 39... Kg7 {[%clk 0:00:05.3]} 40. Nb4 {[%clk 0:01:31.6]} 1-0

[Event "*** Titled Tuesday Blitz"]
[Site "Chess.com"]
[Date "2018.08.07"]
[Round "6"]
[White "JozefKneht"]
[Black "wonderfultime"]
[Result "0-1"]
[WhiteElo "2349"]
[BlackElo "2852"]
[TimeControl "180+2"]
[EndTime "14:17:06 PDT"]
[Termination "wonderfultime won by resignation"]

1. d4 {[%clk 0:03:01.9]} 1... e6 {[%clk 0:02:59]} 2. Bf4 {[%clk 0:03:01.9]} 2...
Nf6 {[%clk 0:02:57.3]} 3. Nf3 {[%clk 0:03:01.4]} 3... c5 {[%clk 0:02:58.2]} 4.
e3 {[%clk 0:03:01.5]} 4... d5 {[%clk 0:02:59.6]} 5. c3 {[%clk 0:02:59.8]} 5...
Bd6 {[%clk 0:03:00.7]} 6. Bg3 {[%clk 0:02:56.3]} 6... O-O {[%clk 0:03:01.7]} 7.
Nbd2 {[%clk 0:02:54.9]} 7... Qc7 {[%clk 0:03:02.3]} 8. dxc5 {[%clk 0:02:47.4]}
8... Qxc5 {[%clk 0:02:57.4]} 9. Bd3 {[%clk 0:02:44.8]} 9... Nbd7 {[%clk
0:02:42.5]} 10. e4 {[%clk 0:02:38.9]} 10... Bxg3 {[%clk 0:02:27]} 11. hxg3
{[%clk 0:02:37.4]} 11... h6 {[%clk 0:02:22.6]} 12. O-O {[%clk 0:02:35.9]} 12...
dxe4 {[%clk 0:02:02.4]} 13. Nxe4 {[%clk 0:02:34.4]} 13... Nxe4 {[%clk
0:02:03.7]} 14. Bxe4 {[%clk 0:02:34.6]} 14... Nf6 {[%clk 0:02:05.1]} 15. Qe2
{[%clk 0:02:32.2]} 15... Bd7 {[%clk 0:01:59.1]} 16. Rfd1 {[%clk 0:02:29.4]}
16... Bb5 {[%clk 0:01:57.8]} 17. Bd3 {[%clk 0:02:11.1]} 17... Ba4 {[%clk
0:01:57.6]} 18. Bc2 {[%clk 0:02:09.1]} 18... Bxc2 {[%clk 0:01:55.9]} 19. Qxc2
{[%clk 0:02:08.8]} 19... Rac8 {[%clk 0:01:57.7]} 20. Qe2 {[%clk 0:01:58.2]}
20... Rfd8 {[%clk 0:01:53.9]} 21. Rxd8+ {[%clk 0:01:55.6]} 21... Rxd8 {[%clk
0:01:54.6]} 22. Rd1 {[%clk 0:01:56.8]} 22... Rxd1+ {[%clk 0:01:30.8]} 23. Qxd1
{[%clk 0:01:58.7]} 23... Ne4 {[%clk 0:01:32.4]} 24. Qd4 {[%clk 0:01:58.5]} 24...
Qxd4 {[%clk 0:01:33.7]} 25. Nxd4 {[%clk 0:01:58.9]} 25... Nd6 {[%clk 0:01:34.9]}
26. g4 {[%clk 0:01:57.1]} 26... Kf8 {[%clk 0:01:31.4]} 27. f3 {[%clk 0:01:57.2]}
27... Ke7 {[%clk 0:01:32.2]} 28. Kf2 {[%clk 0:01:57.3]} 28... e5 {[%clk
0:01:20]} 29. Nf5+ {[%clk 0:01:44.9]} 29... Nxf5 {[%clk 0:01:20.7]} 30. gxf5
{[%clk 0:01:46.8]} 30... Kf6 {[%clk 0:00:59.1]} 31. g4 {[%clk 0:01:47.1]} 31...
h5 {[%clk 0:01:00.3]} 32. gxh5 {[%clk 0:01:32.6]} 32... Kxf5 {[%clk 0:01:00.2]}
33. Ke3 {[%clk 0:01:32.8]} 33... Kg5 {[%clk 0:00:48.7]} 34. Ke4 {[%clk
0:01:33.7]} 34... f6 {[%clk 0:00:20.9]} 35. c4 {[%clk 0:01:34.4]} 35... Kxh5
{[%clk 0:00:22.1]} 36. c5 {[%clk 0:01:35.1]} 36... Kg6 {[%clk 0:00:23.5]} 37. b4
{[%clk 0:01:35.3]} 37... Kf7 {[%clk 0:00:25]} 38. Kd5 {[%clk 0:01:33.9]} 38...
Ke7 {[%clk 0:00:26.1]} 39. b5 {[%clk 0:01:35.4]} 39... Kd7 {[%clk 0:00:26.8]}
40. a4 {[%clk 0:01:36.1]} 40... Kc7 {[%clk 0:00:26.6]} 41. Ke6 {[%clk
0:01:34.3]} 41... a6 {[%clk 0:00:27]} 42. Kd5 {[%clk 0:01:33.5]} 42... axb5
{[%clk 0:00:27.6]} 43. axb5 {[%clk 0:01:34.1]} 43... Kd7 {[%clk 0:00:29.5]} 44.
b6 {[%clk 0:01:21.7]} 44... g6 {[%clk 0:00:27.1]} 45. c6+ {[%clk 0:01:22.7]}
45... bxc6+ {[%clk 0:00:28.1]} 46. Kc5 {[%clk 0:01:24.2]} 46... g5 {[%clk
0:00:29.6]} 47. b7 {[%clk 0:01:24.5]} 47... Kc7 {[%clk 0:00:30.9]} 48. b8=Q+
{[%clk 0:01:24.2]} 48... Kxb8 {[%clk 0:00:32.2]} 49. Kxc6 {[%clk 0:01:25.8]}
49... e4 {[%clk 0:00:33.7]} 50. fxe4 {[%clk 0:01:25.2]} 50... g4 {[%clk
0:00:35.2]} 0-1

[Event "*** Titled Tuesday Blitz"]
[Site "Chess.com"]
[Date "2018.08.07"]
[Round "6"]
[White "Angry_Twin"]
[Black "David_Klein"]
[Result "1-0"]
[WhiteElo "2634"]
[BlackElo "2515"]
[TimeControl "180+2"]
[EndTime "14:17:08 PDT"]
[Termination "Angry_Twin won by checkmate"]

1. e4 {[%clk 0:03:01.9]} 1... g6 {[%clk 0:03:00.9]} 2. d4 {[%clk 0:03:02.9]}
2... Bg7 {[%clk 0:03:01.9]} 3. c4 {[%clk 0:03:04.4]} 3... c6 {[%clk 0:03:00.3]}
4. Nc3 {[%clk 0:03:05.2]} 4... Nf6 {[%clk 0:02:59.7]} 5. Nf3 {[%clk 0:03:03.3]}
5... O-O {[%clk 0:02:58.2]} 6. Bd3 {[%clk 0:03:04.3]} 6... d6 {[%clk 0:02:57.3]}
7. O-O {[%clk 0:03:05.1]} 7... Bg4 {[%clk 0:02:57.8]} 8. h3 {[%clk 0:03:05.1]}
8... Bxf3 {[%clk 0:02:58.6]} 9. Qxf3 {[%clk 0:03:07]} 9... Nfd7 {[%clk
0:02:59.6]} 10. Be3 {[%clk 0:03:06.9]} 10... c5 {[%clk 0:03:00.9]} 11. d5 {[%clk
0:03:02.6]} 11... Ne5 {[%clk 0:03:00.8]} 12. Qe2 {[%clk 0:03:03.6]} 12... Nxd3
{[%clk 0:03:01.6]} 13. Qxd3 {[%clk 0:03:05.5]} 13... Nd7 {[%clk 0:03:02.8]} 14.
f4 {[%clk 0:03:06.3]} 14... a6 {[%clk 0:03:03.8]} 15. a4 {[%clk 0:03:05.4]}
15... Rb8 {[%clk 0:02:55.9]} 16. Ra3 {[%clk 0:03:03]} 16... Qa5 {[%clk
0:02:29.2]} 17. Bd2 {[%clk 0:02:59.4]} 17... Qc7 {[%clk 0:02:25.7]} 18. Kh1
{[%clk 0:02:56.3]} 18... b6 {[%clk 0:02:18.5]} 19. Rb1 {[%clk 0:02:56.5]} 19...
Rfe8 {[%clk 0:02:14.9]} 20. Ne2 {[%clk 0:02:51.6]} 20... b5 {[%clk 0:02:12.7]}
21. axb5 {[%clk 0:02:52]} 21... axb5 {[%clk 0:02:13.8]} 22. cxb5 {[%clk
0:02:53.3]} 22... c4 {[%clk 0:02:14.6]} 23. Qc2 {[%clk 0:02:48.4]} 23... Rxb5
{[%clk 0:02:11.4]} 24. Bc3 {[%clk 0:02:49.6]} 24... Nf6 {[%clk 0:01:56]} 25. Nd4
{[%clk 0:02:46]} 25... Rb7 {[%clk 0:01:48.4]} 26. Nc6 {[%clk 0:02:46.4]} 26...
e6 {[%clk 0:01:36.7]} 27. Bxf6 {[%clk 0:02:40.6]} 27... Bxf6 {[%clk 0:01:36.8]}
28. Qxc4 {[%clk 0:02:40.9]} 28... exd5 {[%clk 0:01:25.2]} 29. Qxd5 {[%clk
0:02:42.8]} 29... Bxb2 {[%clk 0:01:13.2]} 30. Ra2 {[%clk 0:02:38]} 30... Bg7
{[%clk 0:01:05.7]} 31. Rxb7 {[%clk 0:02:32.5]} 31... Qxb7 {[%clk 0:01:06.3]} 32.
Ra7 {[%clk 0:02:34]} 32... Qb1+ {[%clk 0:00:52.7]} 33. Kh2 {[%clk 0:02:35.3]}
33... Rf8 {[%clk 0:00:52.7]} 34. Rxf7 {[%clk 0:02:26.6]} 34... Rxf7 {[%clk
0:00:18.5]} 35. Nd8 {[%clk 0:02:27.2]} 35... Bh6 {[%clk 0:00:03.2]} 36. Qxf7+
{[%clk 0:02:24]} 36... Kh8 {[%clk 0:00:04.3]} 37. Qf6+ {[%clk 0:02:10.3]} 37...
Kg8 {[%clk 0:00:04.9]} 38. Qe6+ {[%clk 0:02:10.1]} 38... Kg7 {[%clk 0:00:02.3]}
39. Qf7+ {[%clk 0:01:12.7]} 39... Kh8 {[%clk 0:00:03.2]} 40. Ne6 {[%clk
0:01:14.6]} 40... Qxe4 {[%clk 0:00:02.8]} 41. Qe8+ {[%clk 0:01:15.1]} 41... Bf8
{[%clk 0:00:03.4]} 42. Qxf8# {[%clk 0:01:16.6]} 1-0

[Event "*** Titled Tuesday Blitz"]
[Site "Chess.com"]
[Date "2018.08.07"]
[Round "6"]
[White "dretch"]
[Black "Alexander_Moskalenko"]
[Result "0-1"]
[WhiteElo "2750"]
[BlackElo "2831"]
[TimeControl "180+2"]
[EndTime "14:17:10 PDT"]
[Termination "Alexander_Moskalenko won on time"]

1. d4 {[%clk 0:03:01.9]} 1... d5 {[%clk 0:03:00.2]} 2. c4 {[%clk 0:03:03.2]}
2... e6 {[%clk 0:03:01.6]} 3. Nc3 {[%clk 0:03:04.3]} 3... Nf6 {[%clk 0:03:02.9]}
4. cxd5 {[%clk 0:03:05.3]} 4... exd5 {[%clk 0:03:03.6]} 5. Bg5 {[%clk
0:03:06.3]} 5... c6 {[%clk 0:03:04.7]} 6. e3 {[%clk 0:03:06.5]} 6... Be7 {[%clk
0:03:05.3]} 7. Bd3 {[%clk 0:03:07.3]} 7... Nbd7 {[%clk 0:03:05.8]} 8. Qc2 {[%clk
0:03:07.4]} 8... Nh5 {[%clk 0:03:00.6]} 9. Bxe7 {[%clk 0:03:08.1]} 9... Qxe7
{[%clk 0:03:02.5]} 10. O-O-O {[%clk 0:03:08.7]} 10... Nb6 {[%clk 0:03:02.2]} 11.
Kb1 {[%clk 0:03:09.3]} 11... Be6 {[%clk 0:02:58.7]} 12. Rc1 {[%clk 0:03:10.1]}
12... O-O-O {[%clk 0:02:55]} 13. Nf3 {[%clk 0:03:09.8]} 13... Kb8 {[%clk
0:02:55.4]} 14. Na4 {[%clk 0:03:05.6]} 14... Nxa4 {[%clk 0:02:55.4]} 15. Qxa4
{[%clk 0:03:07.5]} 15... Nf6 {[%clk 0:02:45.5]} 16. Rc3 {[%clk 0:03:08]} 16...
Bc8 {[%clk 0:02:44.8]} 17. Ra3 {[%clk 0:03:01.7]} 17... a6 {[%clk 0:02:46]} 18.
Ne5 {[%clk 0:02:56.3]} 18... Ng4 {[%clk 0:00:27.3]} 19. Qxa6 {[%clk 0:01:56.6]}
19... Nxe5 {[%clk 0:00:23.1]} 20. Qa7+ {[%clk 0:01:53.2]} 20... Kc7 {[%clk
0:00:24.5]} 21. dxe5 {[%clk 0:01:50.5]} 21... Qxe5 {[%clk 0:00:26.4]} 22. Rc1
{[%clk 0:01:47.2]} 22... Kd7 {[%clk 0:00:27.7]} 23. e4 {[%clk 0:01:02.6]} 23...
dxe4 {[%clk 0:00:26.2]} 24. Re1 {[%clk 0:00:58.4]} 24... Rhe8 {[%clk 0:00:22]}
25. Rxe4 {[%clk 0:00:51.3]} 25... Qh5 {[%clk 0:00:21.9]} 26. Be2 {[%clk
0:00:39.5]} 26... Qg6 {[%clk 0:00:17]} 27. Rd3+ {[%clk 0:00:37.1]} 27... Kc7
{[%clk 0:00:17.5]} 28. Qa5+ {[%clk 0:00:09.4]} 28... b6 {[%clk 0:00:18.4]} 29.
Rxe8 {[%clk 0:00:03.4]} 29... Rxd3 {[%clk 0:00:14.5]} 0-1